Cogmind - Beta 14 *** ADVENTURER MODE // 2024.10.27 @ 11:09:00 Player: Elmgren Result: Self-destructed Performance ------------- Evolutions (3) 1500 Regions Visited (6) 1200 Robots Destroyed (33) 165 Value Destroyed (1041) 1041 Prototype IDs (0) 0 Alien Tech Used (0) 0 Bonus (0) 0 TOTAL SCORE: 3906 Bonus ------- None Cogmind --------- Core Integrity 371/700 Matter 300/300 Energy 100/100 System Corruption 1% Temperature Warning (332) Movement Walking (130) Location -7/Storage Parts ------- > --- POWER (2) -------- (None) > --- PROPULSION (6) --- Titanium Leg > --- UTILITY (3) ------ (None) > --- WEAPON (2) ------- (None) > --- INVENTORY (5) ---- Ion Engine Improved Hover Unit Improved Hover Unit Gravmag System Peak State ------------ > --- POWER ------------ Light Nuclear Core Improved Deuterium Engine > --- PROPULSION ------- Aluminum Leg Titanium Leg Titanium Leg Titanium Leg Titanium Leg > --- UTILITY ---------- Drone Bay Drone Bay Drone Bay > --- WEAPON ----------- Beam Rifle Particle Gun > --- INVENTORY -------- Ion Engine Gravmag System [Rating: 39] Favorites ----------- Power Ion Engine Engine Ion Engine Power Core Light Nuclear Core Propulsion Titanium Leg Leg Titanium Leg Wheel Wheel Hover Unit Gravmag System Utility ECM Suite Device ECM Suite Weapon Beam Rifle Energy Gun Beam Rifle Ballistic Gun Light Assault Rifle Build | -11 -10 -9 -9 -8 -7 -7 ------- Run | Yrd Mat Mat Min Mat Fac Sto Slots Evolved 6 | . . 2 . 2 2 . Power 1 | . . . . . 1 . Propulsion 4 | . . 2 . 1 1 . Utility 1 | . . . . 1 . . Weapon . | . . . . . . . Parts Attached 41 | 7 2 6 . 2 4 20 Power 6 | 1 . 1 . 1 1 2 Engine 5 | 1 . 1 . 1 1 1 Core 1 | . . . . . . 1 Reactor . | . . . . . . . Propulsion 17 | 3 . 5 . 1 1 7 Treads . | . . . . . . . Leg 7 | . . . . . . 7 Wheel 9 | 3 . 5 . 1 . . Hover 1 | . . . . . 1 . Flight . | . . . . . . . Utility 12 | 1 1 . . . 1 9 Device 12 | 1 1 . . . 1 9 Storage . | . . . . . . . Processor . | . . . . . . . Hackware . | . . . . . . . Protection . | . . . . . . . Artifact . | . . . . . . . Weapon 6 | 2 1 . . . 1 2 Energy Gun 3 | . . . . . 1 2 Energy Cannon . | . . . . . . . Ballistic Gun 3 | 2 1 . . . . . Ballistic Cannon . | . . . . . . . Launcher . | . . . . . . . Special Weapon . | . . . . . . . Impact Weapon . | . . . . . . . Slashing Weapon . | . . . . . . . Piercing Weapon . | . . . . . . . Special Melee Weapon . | . . . . . . . Unidentified Prototypes . | . . . . . . . Parts Lost 22 | . . . 5 4 1 12 Power 3 | . . . . 1 . 2 Propulsion 10 | . . . 3 2 . 5 Utility 4 | . . . . 1 1 2 Weapon 5 | . . . 2 . . 3 Highest Loss Streak 11 | . . . 5 4 1 11 To Critical Strikes . | . . . . . . . Average Slot Usage (%) 69 | . 94 100 69 42 24 69 Engine 8 | . 14 11 11 8 7 6 Core 1 | . . . . . . 4 Leg 14 | . . . . . . 34 Wheel 14 | . 25 44 31 16 . . Device 15 | . 26 22 22 17 8 10 Energy Gun 5 | . . . . . 4 10 Ballistic Gun 7 | . 27 22 4 . . . Peak Build Rating 39 | 6 7 9 9 5 10 39 Average Rating 14 | 4 6 8 6 4 7 26 On Entrance 5 | . 6 6 9 4 1 10 Naked Turns . | . . . . . . . Heaviest Build 39 | 7 9 11 9 8 9 39 Greatest Support 88 | 26 20 46 40 20 9 88 Greatest Overweight (x) 2 | . . . . 2 2 . Average Overweight (x) . | . . . . . . . Largest Inventory Capacity 5 | 5 5 5 5 5 5 5 Average Capacity 5 | 5 5 5 5 5 5 5 Most Carried 5 | 4 4 4 3 2 1 5 Average Carried 2 | 1 3 1 3 1 . 2 Final Capacity 5 | 5 5 5 5 5 5 5 Final Carried 4 | 3 4 3 3 1 . 4 Class Distribution -------------------- 68% | Mutant 31% | Scavenger-Mutant Dominant Class ---------------- Mutant | -10/Materials Mutant | -9/Materials Mutant | -9/Mines Scavenger-Mutant | -8/Materials Mutant | -7/Factory Scavenger-Mutant | -7/Storage Resources | -11 -10 -9 -9 -8 -7 -7 ----------- Run | Yrd Mat Mat Min Mat Fac Sto Matter Collected 758 | 314 26 138 6 . 25 249 Remotely . | . . . . . . . Salvage Created 1335 | 225 93 342 53 . 49 573 Parts 86 | 20 2 23 8 . 1 32 Haulers Intercepted . | . . . . . . . Recyclers Shooed 2 | 1 . . . . 1 . Parts Field Recycled . | . . . . . . . Retrieved Matter . | . . . . . . . Parts Self-Destructed . | . . . . . . . Prevented . | . . . . . . . Kills | -11 -10 -9 -9 -8 -7 -7 ------- Run | Yrd Mat Mat Min Mat Fac Sto Combat Hostiles Destroyed 24 | . 2 7 3 . 1 11 Guns 24 | . 2 7 3 . 1 11 Classes Destroyed 10 | 3 1 1 1 . 1 3 Worker 2 | 2 . . . . . . Builder 1 | . . 1 . . . . Tunneler 4 | 4 . . . . . . Recycler 1 | 1 . . . . . . Watcher 1 | . . . . . . 1 Swarmer 3 | . . . 3 . . . Grunt 15 | . 2 7 . . . 6 Duelist 2 | . . . . . . 2 Sentry 2 | . . . . . . 2 Programmer 2 | . . . . . 1 1 Best Kill Streak 7 | 7 2 4 2 . 1 3 Combat Bots Only 4 | . 2 4 2 . 1 3 Max Kills in Single Turn 2 | 1 2 1 1 . 1 1 Gunslinging 1 | . 1 . . . . . Exploded . | . . . . . . . Melee . | . . . . . . . Uniques/NPCs Destroyed . | . . . . . . . Combat | -11 -10 -9 -9 -8 -7 -7 -------- Run | Yrd Mat Mat Min Mat Fac Sto Hostile Shots Fired 391 | . 9 35 70 30 24 223 Missed 137 | . 2 9 22 10 12 82 Damage Taken 2500 | . 79 242 306 266 141 1466 Core 614 | . 8 66 86 125 82 247 Absorbed by Shields . | . . . . . . . Ignored by Resistances 743 | . 24 75 96 72 41 435 Core Remaining (%) 83 | 100 96 . 62 77 . . Volleys Fired 110 | 11 5 16 12 . 6 60 Largest 2 | 2 2 2 2 . 1 2 Hottest 130 | 40 40 40 40 . 56 130 Shots Fired 157 | 22 10 32 13 . 6 74 Gun 157 | 22 10 32 13 . 6 74 Cannon . | . . . . . . . Launcher . | . . . . . . . Special . | . . . . . . . Kinetic 77 | 22 10 32 13 . . . Thermal 80 | . . . . . 6 74 Explosive . | . . . . . . . Electromagnetic . | . . . . . . . Robot Hit Streak 31 | 16 18 31 3 . 9 23 Robot Miss Streak 1 | . 1 . 1 . . 1 Penetration Max . | . . . . . . . Secondary Targets 2 | . 1 1 . . . . Max Gunslinging Chain 1 | . 1 1 . . . . Shots Hit Robots 132 | 16 7 26 9 . 6 68 Core Hits 70 | 8 5 13 7 3 2 32 Critical Kills 1 | . . 1 . . . . Critical Parts Destroyed . | . . . . . . . Critical Strikes 5 | . . 1 . . . 4 Burn 4 | . . . . . . 4 Destroy 1 | . . 1 . . . . Melee Attacks . | . . . . . . . Impact . | . . . . . . . Slashing . | . . . . . . . Piercing . | . . . . . . . Sneak Attacks . | . . . . . . . Combat Hostiles . | . . . . . . . Follow-up Attacks . | . . . . . . . Damage Inflicted 1823 | 176 84 284 83 37 108 1051 Guns 1768 | 176 84 284 71 . 107 1046 Cannons . | . . . . . . . Explosions . | . . . . . . . Melee . | . . . . . . . Ramming 55 | . . . 12 37 1 5 Kinetic 615 | 176 84 284 71 . . . Thermal 1153 | . . . . . 107 1046 Explosive . | . . . . . . . Electromagnetic . | . . . . . . . Impact . | . . . . . . . Slashing . | . . . . . . . Piercing . | . . . . . . . Highest Corruption 2 | . . . 1 2 1 1 Average Corruption 1 | . . . 1 2 1 1 Corruption Purged . | . . . . . . . Corruption Blocked . | . . . . . . . Effects 9 | . . . . 1 . 8 Matter Fused 1 | . . . . . . 1 Energy Discharges 4 | . . . . . . 4 Parts Rejected 1 | . . . . . . 1 Parts Fused 1 | . . . . 1 . . Data Loss (minor) 1 | . . . . . . 1 Weapon Failures 1 | . . . . . . 1 Overload Shots . | . . . . . . . Overflow Damage . | . . . . . . . Projectiles . | . . . . . . . Explosions . | . . . . . . . Melee . | . . . . . . . Knockbacks 1 | . . . . . . 1 Impact 1 | . . . . . . 1 Kinetic . | . . . . . . . Secondary . | . . . . . . . Self-Inflicted Damage 20 | . . . 5 15 . . Shots . | . . . . . . . Rammed 18 | . . . 6 11 1 . Targets Rammed 20 | . . . 6 11 1 2 Kicked 2 | . . . . . . 2 Crushed . | . . . . . . . Highest Temperature 394 | . 9 6 . 10 . 394 Average Temperature 146 | . 7 4 . 5 . 171 Received Heat Transfer 867 | . 78 174 . 180 . 435 Effects 4 | . . . . . . 4 Shutdowns 2 | . . . . . . 2 Energy Bleed 1 | . . . . . . 1 Matter Decay 1 | . . . . . . 1 Siege Activations . | . . . . . . . Robots Corrupted . | . . . . . . . Combat Hostiles . | . . . . . . . Parts Fried . | . . . . . . . Impact Corruptions . | . . . . . . . Robots Melted . | . . . . . . . Combat Hostiles . | . . . . . . . Parts Melted 7 | . . . . . 3 4 Heat Transferred 2661 | . . . . . 222 2439 Parts Sabotaged . | . . . . . . . Parts Stolen . | . . . . . . . Parts Stripped . | . . . . . . . Power Chain Reactions . | . . . . . . . Alert | -11 -10 -9 -9 -8 -7 -7 ------- Run | Yrd Mat Mat Min Mat Fac Sto Peak Influence 221 | 35 100 221 122 57 32 147 Initial 72 | . 19 36 72 27 12 12 Average 58 | 9 36 93 92 38 21 70 Maximum Alert Level 1 | . . 1 . . . . Low Security (%) 98 | 100 100 88 100 100 100 100 Level 1 1 | . . 11 . . . . Level 2 . | . . . . . . . Level 3 . | . . . . . . . Level 4 . | . . . . . . . Level 5 . | . . . . . . . High Security . | . . . . . . . Max Security . | . . . . . . . Squads Dispatched 8 | . . . . 1 . 7 Investigation 1 | . . . . 1 . . Extermination 1 | . . . . . . 1 Reinforcement 1 | . . . . . . 1 Assault 2 | . . . . . . 2 Garrison 3 | . . . . . . 3 Intercept . | . . . . . . . Searches Triggered . | . . . . . . . Construction Impeded . | . . . . . . . Haulers Reinforced . | . . . . . . . Active Scanning Responses . | . . . . . . . Cargo Convoy Interrupts . | . . . . . . . Stealth | -11 -10 -9 -9 -8 -7 -7 --------- Run | Yrd Mat Mat Min Mat Fac Sto Distress Signals 3 | . . 1 . 1 . 1 Communications Jammed . | . . . . . . . Distress Signals . | . . . . . . . Times Spotted 60 | . 5 18 4 7 2 24 Peak Tracking Total 11 | . 2 5 4 6 1 11 Tactical Retreats 9 | . 1 4 . 2 . 2 Traps | -11 -10 -9 -9 -8 -7 -7 ------- Run | Yrd Mat Mat Min Mat Fac Sto Traps Triggered 2 | . 1 . . 1 . . Indirectly . | . . . . . . . Trap Hack Attempts . | . . . . . . . Triggered . | . . . . . . . Disarmed 3 | . . 3 . . . . Reprogrammed . | . . . . . . . Reused . | . . . . . . . Traps Extracted . | . . . . . . . Installed . | . . . . . . . Triggered . | . . . . . . . Machines | -11 -10 -9 -9 -8 -7 -7 ---------- Run | Yrd Mat Mat Min Mat Fac Sto Machines Disabled . | . . . . . . . Max in Single Turn . | . . . . . . . Machines Repaired . | . . . . . . . Machines Dismantled . | . . . . . . . Machines Sabotaged . | . . . . . . . Overloaded Fab Kills . | . . . . . . . Hacking | -11 -10 -9 -9 -8 -7 -7 --------- Run | Yrd Mat Mat Min Mat Fac Sto Machines Accessed 4 | . 2 1 . . . 1 Terminals 4 | . 2 1 . . . 1 Fabricators . | . . . . . . . Repair Stations . | . . . . . . . Recycling Units . | . . . . . . . Scanalyzers . | . . . . . . . Garrison Access . | . . . . . . . Total Hacks 9 | . 4 3 . . . 2 Successful 6 | . 3 2 . . . 1 Failed 3 | . 1 1 . . . 1 Catastrophic . | . . . . . . . Database Lockouts . | . . . . . . . Manual . | . . . . . . . Terminals 9 | . 4 3 . . . 2 Fabricators . | . . . . . . . Repair Stations . | . . . . . . . Recycling Units . | . . . . . . . Scanalyzers . | . . . . . . . Garrison Access . | . . . . . . . Terminal Hacks 6 | . 3 2 . . . 1 Record 2 | . 2 . . . . . Open Door 1 | . . . . . . 1 Alert Level 1 | . 1 . . . . . Locate Traps 1 | . . 1 . . . . Disarm Traps 1 | . . 1 . . . . Fabricator Hacks . | . . . . . . . Repair Station Hacks . | . . . . . . . Recycling Unit Hacks . | . . . . . . . Scanalyzer . | . . . . . . . Garrison Access Hacks . | . . . . . . . Unauthorized Hacks . | . . . . . . . Terminals . | . . . . . . . Fabricators . | . . . . . . . Repair Stations . | . . . . . . . Recycling Units . | . . . . . . . Scanalyzers . | . . . . . . . Garrison Access . | . . . . . . . Data Cores Recovered . | . . . . . . . Used . | . . . . . . . Hacking Detections 2 | . 1 . . . . 1 Full Trace Events . | . . . . . . . Feedback Events . | . . . . . . . Feedback Blocked . | . . . . . . . Robot Schematics Acquired . | . . . . . . . Robots Built . | . . . . . . . Authchips . | . . . . . . . Time . | . . . . . . . Total Robot Build Rating . | . . . . . . . Part Schematics Acquired . | . . . . . . . Parts Built . | . . . . . . . Authchips . | . . . . . . . Time . | . . . . . . . Total Part Build Rating . | . . . . . . . Parts Repaired . | . . . . . . . Time . | . . . . . . . Parts Recycled . | . . . . . . . Recycled Matter . | . . . . . . . Retrieved Matter . | . . . . . . . Retrieved Components . | . . . . . . . Parts Scanalyzed . | . . . . . . . Part Schematics Acquired . | . . . . . . . Parts Damaged . | . . . . . . . Bothacking | -11 -10 -9 -9 -8 -7 -7 ------------ Run | Yrd Mat Mat Min Mat Fac Sto Used RIF Installer . | . . . . . . . Robots Hacked . | . . . . . . . Non-combat . | . . . . . . . Combat . | . . . . . . . Robot Hacks Applied . | . . . . . . . Relay Couplers Released . | . . . . . . . Fabnet Peak Effective % . | . . . . . . . Robots Rewired . | . . . . . . . Allies Hacked . | . . . . . . . Hacks Repelled . | . . . . . . . Allies | -11 -10 -9 -9 -8 -7 -7 -------- Run | Yrd Mat Mat Min Mat Fac Sto Total Allies 2 | . . . . . . 2 Largest Group 2 | . . . . . . 2 Highest-Rated Group 62 | . . . . . . 62 Highest-Rated Ally 31 | . . . . . . 31 Total Orders . | . . . . . . . Ally Attacks 9 | . . . . . . 9 Total Damage 145 | . . . . . . 145 Kills . | . . . . . . . Allies Corrupted . | . . . . . . . Allies Melted . | . . . . . . . Intel | -11 -10 -9 -9 -8 -7 -7 ------- Run | Yrd Mat Mat Min Mat Fac Sto Robot Analysis Total . | . . . . . . . Derelict Logs Recovered . | . . . . . . . Drone Launches 20 | . . . . . . 20 Drone Recoveries 10 | . . . . . . 10 Exploration | -11 -10 -9 -9 -8 -7 -7 ------------- Run | Yrd Mat Mat Min Mat Fac Sto Turns Passed 1941 | 119 220 327 88 197 247 743 Spaces Moved 1374 | 83 253 191 68 179 279 321 Core 90 | 1 . . . 16 73 . Treads . | . . . . . . . Legs 300 | . . . . . . 300 Wheels 757 | 82 253 191 68 163 . . Hover 227 | . . . . . 206 21 Flight . | . . . . . . . Fastest Speed 50 | 50 80 80 80 50 60 60 Average Speed 91 | 86 80 84 80 78 80 123 Slowest Speed 150 | 90 80 85 80 150 150 130 Overloaded Moves . | . . . . . . . Propulsion Burnouts . | . . . . . . . Robots Hopped . | . . . . . . . Cave-ins Triggered . | . . . . . . . Exploration Rate (%) 14 | 5 26 10 13 12 6 26 Regions Visited 6 Branch Regions 2 Pre-discovered Areas 1 | . . . 1 . . . Known Exits Taken . | . . . . . . . Unknown Exits Taken 6 | 1 1 1 1 1 1 . Scrap Searched . | . . . . . . . Spaces Dug . | . . . . . . . Terrain Destroyed . | . . . . . . . Melee . | . . . . . . . Projectile . | . . . . . . . AOE . | . . . . . . . Terrain Rammed . | . . . . . . . Walls Destroyed . | . . . . . . . Machines Disabled . | . . . . . . . Actions | -11 -10 -9 -9 -8 -7 -7 --------- Run | Yrd Mat Mat Min Mat Fac Sto Total 1903 | 107 260 329 90 234 294 589 Wait 323 | . . 109 5 42 4 163 Move 1368 | 82 252 190 67 178 278 321 Hop . | . . . . . . . Pick Up 24 | 5 1 5 . . 1 12 Fast Attach 19 | 6 2 . . . 2 9 Attach 17 | . . 5 . 1 2 9 Detach 1 | . . . . . . 1 Swap 5 | 1 . 1 . 1 . 2 Drop 11 | 2 . 3 . 1 . 5 Fire 110 | 11 5 16 12 . 6 60 Melee . | . . . . . . . Ram 18 | . . . 6 11 1 . Kick 2 | . . . . . . 2 Crush . | . . . . . . . Escape Stasis . | . . . . . . . Rewire 5 | . . . . . . 5 Trap . | . . . . . . . Miscellaneous . | . . . . . . . Route ------- -11/Scrapyard -10/Materials -9/Materials -9/Mines -8/Materials -7/Factory -7/Storage History --------- Turn | Location | Event 15 | -11/Scrapyard | Discovered new exit (range 15) 120 | -11/Scrapyard | Entered Materials 308 | -10/Materials | Build established: Mutant 335 | -10/Materials | Discovered new exit (range 5) 340 | -10/Materials | Entered another Materials area 340 | -9/Materials | Evolved 2 slots: Propulsion x2 602 | -9/Materials | Discovered new exit (range 16) 667 | -9/Materials | Entered Mines 739 | -9/Mines | Met a Derelict bent on vengeance 741 | -9/Mines | Discovered new exit (range 7) 744 | -9/Mines | Learned location of Storage (-7) 755 | -9/Mines | Entered Materials 755 | -8/Materials | Evolved 2 slots: Propulsion x1, Utility x1 765 | -8/Materials | Lost 5 parts (3n2w) 943 | -8/Materials | Discovered new exit (range 13) 952 | -8/Materials | Entered Factory 952 | -7/Factory | Evolved 2 slots: Power x1, Propulsion x1 976 | -7/Factory | Lost 4 parts (1p2n1u) 1195 | -7/Factory | Discovered new exit (range 6) 1199 | -7/Factory | Entered Storage 1475 | -7/Storage | Lost 4 allies 1635 | -7/Storage | Lost 6 allies 1697 | -7/Storage | Garrison activated, responded to threat 1818 | -7/Storage | Build established: Scavenger-Mutant 1833 | -7/Storage | Met a pair of Derelict thieves 1942 | -7/Storage | Self-destructed Last Messages --------------- 01886_ K-01 Serf collects debris. 01890_ Acquired Particle Gun. 01900_ Aluminum Leg destroyed. 01909_ Imp. Heat Sink severed. 01911_ Particle Gun destroyed. 01911_ Imp. Deuterium Engine destroyed. 01914_ Titanium Leg destroyed. 01922_ L-41 Fighter destroyed. 01922_ K-01 Serf collects debris. 01926_ Lgt. Nuclear Core destroyed. 01928_ G-47 Trooper destroyed. 01928_ K-01 Serf collects debris. 01929_ R-06 Scavenger collects Imp. Heat Sink. 01931_ K-01 Serf collects debris. 01932_ R-06 Scavenger collects Aluminum Leg. 01936_ Carbon-fiber Leg melted. 01936_ G-50 Soldier destroyed. 01936_ K-01 Serf collects debris. 01941_ Aluminum Leg destroyed. 01941_ Particle Gun destroyed. Map ----- +----------------------------------------------------+ | ????????????????????????????????????????????? | | ???????????????????????????#"???????????????? | | ??????????????????????????##"???????????????? | | ??????????????????????????# ??? ????????? | | ??????????????????????????# ! ? #????????? | | ??????????????????????????# ####?????? | | ??????????????????????????# """" """??????? | | ??????????????????????????# """" Y"#?????? | | ??????????????????????????# """" """??????? | | ??????????????????????????# """" #???#####? | | ??????????????????????????# #???#"""#? | | ????????????????????####### #???#"Y"#? | | ????????????????????# ####+#########" "## | | ????????????????????# % | | ????????????????????# % | | ????????????????????# | | ????????????????????# " ####+############## | | ????????????????????## "%##?# #????????? | | ?????????????????????# "#??# #????????? | | ?????????????????????# #??# / #????????? | | ?????????????????????# #??# ! #????????? | | ?????????????????????# #??# #????????? | | ?????????????######### [=#??#! #????????? | | ?????????????#!! # =# %%#??# #????????? | | ?????????????# ! " k#glm#### = #????????? | | ?????????????#! k@Yk=Y % s /#????????? | | ?????????????# " [#g #### #????????? | | ?????????????# !! #T## #??# #????????? | | ?????????????#! ! #### #??# #????????? | | ?????????????######??# #??# #????????? | | ?????????????????????# #??########????????? | | ?????????????????????# #??????????????????? | | ?????????????????????# #??????????????????? | | ?????????????????????# #??????????????????? | | ?????????????????????#% #??????????????????? | | ?????????????????????# #??????????????????? | | ????????????????????? #??????????????????? | | ?????????????????????##+##??????????????????? | | ??????????????????????? ???????????????????? | | ???????????????????????""???????????????????? | | ???????????????????????""???????????????????? | | ???????????????????????""???????????????????? | | ????????????????????????????????????????????? | | ????????????????????????????????????????????? | | ????????????????????????????????????????????? | | ????????????????????????????????????????????? | | ????????????????????????????????????????????? | | ????????????????????????????????????????????? | | ????????????????????????????????????????????? | | ????????????????????????????????????????????? | +----------------------------------------------------+ Best States ------------- Heat Dissipation 48 Energy Generation 25 Energy Capacity 350 Matter Stores 300 Matter Capacity 300 Sight Range 16 Robot Scan Range 15 Terrain Scan Density 10 ECM Strength 1 Resistance: KI 20 Resistance: TH 20 Resistance: EX 20 Resistance: EM 20 Resistance: I 20 Resistance: S 20 Resistance: P 20 Evasion (%) 55 Offensive Hacking 10 Item Schematics ----------------- None Robot Schematics ------------------ None Fabricated ------------ Nothing Alien Tech Used ----------------- None Achievements -------------- Release The Drones! Challenges ------------ None Game ------ Seed ThrusterPointyPenetrator Manual? 0 Play Time 00:18:42 Cumulative 3.7 hours Start 2024.10.27 @ 08:15:45 End 2024.10.27 @ 11:09:00 Sessions 3 Manual Loads 0 Difficulty Adventurer Special Mode None Game No. 13 Rogue 3 Adventurer 9 Explorer 1 Win Type - Total 0 Types 0/0/0/0/0/0/0/0/0 Lore% 1 Gallery% 7 Achievement% 9 Wizard Run 0 Options --------- Layout 0 ASCII 0 Keyboard 0 Movement Arrows Keybinds 0 Fullscreen 1 Font 24/Terminus Map View 113x50 Zoom Use 0% Tactical HUD 1 Map Filters NONE Filters NONE Steam 1 RUN: 6de0ae2b-3761-49ae-9ff5-3526de41acb8